bitfinex/quotes_ETHUSD_20251224
["timestamp","ask_amount","ask_price","bid_price","bid_amount"]
[1766584517156,25.301634,2932.8,2931.7,0.9879]
[1766584517459,0.10077552,2933.0,2931.7,0.9879]
[1766584517460,0.04262283,2932.7,2931.7,0.9879]
[1766584517672,25.301634,2932.8,2931.7,4.3988556]
[1766584517828,0.04262283,2932.7,2931.7,3.4109556]
[1766584518030,9.488332,2932.9,2931.8,0.9879]
[1766584518363,0.04262138,2932.8,2931.8,0.9879]
[1766584518564,9.488332,2932.9,2931.8,0.9879]
[1766584518738,0.04461847,2933.0,2931.8,0.9879]
[1766584518739,0.04262138,2932.8,2931.9,0.9879]
[1766584519062,0.04461847,2933.0,2932.2,0.9879]
[1766584519262,0.002,2933.0,2932.2,0.9879]
[1766584519467,0.04461847,2933.0,2932.2,0.9879]
[1766584519668,0.002,2933.0,2931.9,1.35128706]
[1766584519965,0.002,2933.0,2932.0,4.30363632]
[1766584519966,0.44851129,2932.9,2932.0,4.30363632]
[1766584520130,0.04262138,2932.8,2932.0,5.29153632]
[1766584520545,0.04461847,2933.0,2932.0,5.29153632]
[1766584521246,0.04461847,2933.0,2932.0,1.8809]
[1766584521445,0.04461847,2933.0,2932.0,5.29153901]
[1766584521637,0.49739161,2933.0,2932.1,0.5291539]
[1766584522239,0.04461847,2933.0,2932.1,0.5291539]
[1766584522466,0.002,2933.0,2932.1,1.5170539]
[1766584522667,0.04461847,2933.0,2932.1,3.93966864]
[1766584522964,0.002,2933.0,2932.2,0.9879]
[1766584523138,0.04461847,2933.0,2932.2,0.9879]
[1766584523339,0.002,2933.0,2932.3,1.48065686]
[1766584523658,0.04461847,2933.0,2932.4,0.9879]
[1766584523857,0.002,2933.0,2932.4,0.9879]
[1766584524153,0.04461847,2933.0,2932.4,0.9879]
[1766584524357,0.002,2933.0,2932.4,0.9879]
[1766584524566,0.04461847,2933.0,2932.4,0.9879]
[1766584524773,0.002,2933.0,2932.4,0.9879]
[1766584524936,0.04461847,2933.0,2932.4,0.9879]
[1766584525235,0.002,2933.0,2932.4,0.9879]
[1766584525436,0.04461847,2933.0,2932.4,0.9879]
[1766584525635,0.002,2933.0,2932.4,0.9879]
[1766584525860,0.04461847,2933.0,2932.3,0.49275686]
[1766584526061,0.002,2933.0,2932.1,1.5170539]
[1766584526267,0.04461847,2933.0,2932.0,0.893]
[1766584526466,0.002,2933.0,2932.0,4.49172922]
[1766584526667,0.04461847,2933.0,2932.0,4.49172922]
[1766584526869,0.002,2933.0,2932.0,4.49172922]
[1766584527074,0.04461847,2933.0,2932.0,4.49172922]
[1766584527273,0.002,2933.0,2932.0,0.18809]
[1766584527441,0.002,2933.0,2931.6,4.48311288]
[1766584527442,0.09877552,2932.5,2931.6,0.9879]
[1766584527767,0.09877552,2932.3,2931.6,0.9879]
[1766584527971,0.09877552,2932.1,2931.5,0.001]
[1766584528341,0.14140417,2932.3,2931.5,0.44113422]
[1766584528669,0.09877552,2932.3,2931.5,0.44113422]
[1766584529269,0.04262429,2932.6,2931.7,0.9879]
[1766584529853,0.97177552,2932.8,2931.5,0.44113422]
[1766584529854,0.04262283,2932.7,2932.0,0.9879]
[1766584530145,0.873,2932.8,2932.0,0.9879]
[1766584530352,0.873,2932.8,2932.0,1.87608019]
[1766584530658,0.873,2932.8,2932.0,0.9879]
[1766584530974,0.04262283,2932.7,2932.0,0.9879]
[1766584531270,0.14139835,2932.7,2931.7,4.30393459]
[1766584531672,0.14139835,2932.7,2931.7,5.22093459]
[1766584532277,0.14139835,2932.7,2931.7,1.81]
[1766584532476,0.14139835,2932.7,2931.7,2.71733809]
[1766584533278,0.14139835,2932.7,2931.8,0.917]
[1766584534277,0.09877552,2932.6,2931.7,0.90733809]
[1766584534449,0.04262574,2932.5,2931.7,0.90733809]
[1766584535376,0.04262574,2932.5,2931.7,1.82433809]
[1766584535881,0.04262574,2932.5,2931.8,0.001]
[1766584537456,0.04262574,2932.5,2931.5,3.41221653]
[1766584537662,0.04262574,2932.5,2931.6,0.43302165]
[1766584538062,0.04262574,2932.5,2931.5,0.001]
[1766584538268,0.04262574,2932.5,2931.5,0.918]
[1766584538991,0.04262574,2932.5,2931.5,4.32921642]
[1766584539391,0.04262574,2932.5,2931.5,0.001]
[1766584539392,0.09877552,2932.2,2931.5,0.001]
[1766584539681,0.09877552,2932.2,2931.1,1.83604691]
[1766584539682,0.09877552,2932.0,2931.1,1.83604691]
[1766584539875,0.04263446,2931.9,2931.1,0.917]
[1766584540884,0.04263446,2931.9,2930.9,0.917]
[1766584541054,0.04263446,2931.9,2930.7,4.32910181]
[1766584541403,0.09877552,2931.8,2930.7,1.78073322]
[1766584541564,0.09877552,2931.4,2930.5,0.002]
[1766584541764,0.04264319,2931.3,2930.5,0.002]
[1766584542468,0.04264319,2931.3,2930.5,3.41436145]
[1766584543197,0.04264174,2931.4,2930.5,3.41436145]
[1766584544490,0.04264174,2931.4,2930.5,4.33556145]
[1766584544860,0.04264174,2931.4,2930.5,3.41436145]
[1766584545072,0.04264174,2931.4,2930.6,0.9212]
[1766584545486,0.13658473,2931.8,2930.7,0.9212]
[1766584545686,0.91663737,2931.7,2930.7,0.9212]
[1766584546406,0.09877552,2931.9,2930.9,0.9212]
[1766584546407,0.04263446,2931.9,2930.9,0.9212]
[1766584546606,5.696562,2932.3,2931.1,0.9212]
[1766584546904,5.500732,2932.1,2931.1,0.9212]
[1766584547109,0.04263301,2932.0,2931.1,0.9212]
[1766584547309,0.04263156,2932.1,2931.1,0.9212]
[1766584547603,5.715655,2932.3,2931.1,0.9212]
[1766584547798,2.669732,2932.1,2931.1,0.9212]
[1766584548000,0.04263301,2932.0,2931.1,0.9212]
[1766584548203,2.669732,2932.2,2931.1,0.9212]
[1766584548401,0.04263156,2932.1,2931.1,0.9212]
[1766584548604,2.669732,2932.2,2931.2,0.9212]
[1766584548930,0.31386763,2932.1,2931.2,0.9212]
[1766584549079,0.04263156,2932.1,2931.2,0.9212]
[1766584549277,2.669732,2932.2,2931.2,0.9212]
[1766584549482,0.04263156,2932.1,2931.2,0.9212]
[1766584549677,2.669732,2932.2,2931.2,0.9212]
[1766584549913,0.04263156,2932.1,2931.2,0.9212]
[1766584550124,0.27123636,2932.0,2931.2,0.9212]
[1766584550325,0.57083384,2932.4,2931.2,0.9212]
[1766584550326,0.57083384,2932.4,2931.3,0.9212]
[1766584550527,1.06879091,2932.5,2931.5,0.9212]
[1766584550717,0.002,2932.5,2931.5,0.9212]
[1766584551230,0.002,2932.5,2931.7,0.9212]
[1766584552925,0.002,2932.5,2931.9,0.9212]
[1766584553141,0.002,2932.5,2932.0,0.18152]
[1766584553339,0.002,2932.5,2931.8,4.30480298]
[1766584553541,0.002,2932.5,2931.8,5.22600298]
[1766584553747,0.002,2932.5,2931.9,3.4107147]
[1766584554044,0.002,2932.5,2932.0,0.9212]
[1766584554195,0.002,2932.5,2932.0,1.44379147]
[1766584554622,0.002,2932.5,2932.0,0.52259147]
[1766584554927,0.002,2932.5,2932.1,0.9212]
[1766584556729,0.04261993,2932.9,2932.2,3.41040856]
[1766584556897,5.002,2933.0,2932.3,1.01997552]
[1766584557097,5.002,2933.0,2932.5,1.01997552]
[1766584557818,5.002,2933.0,2932.5,4.42995911]
[1766584558410,0.002,2933.0,2932.5,4.42995911]
[1766584558924,0.002,2933.0,2932.5,4.33118359]
[1766584559222,0.002,2933.0,2932.6,0.09877552]
[1766584559423,0.002,2933.0,2932.6,1.1051919]
[1766584561245,0.002,2933.0,2932.6,1.1051919]
[1766584561740,0.002,2933.0,2932.7,2.05]
[1766584561936,0.002,2933.0,2932.6,1.1051919]
[1766584562110,0.002,2933.0,2932.6,1.00641638]
[1766584562316,0.002,2933.0,2932.7,0.893]
[1766584563117,0.002,2933.0,2932.5,0.9212]
[1766584563316,0.002,2933.0,2932.6,0.893]
[1766584563544,0.002,2933.0,2932.6,1.8369]
[1766584563841,0.002,2933.0,2932.6,5.24683617]
[1766584564012,0.002,2933.0,2932.6,1.8369]
[1766584566455,0.002,2933.0,2932.4,0.893]
[1766584566946,0.002,2933.0,2932.0,3.9332137]
[1766584567115,0.002,2933.0,2932.1,3.410511]
[1766584567433,0.002,2933.0,2932.0,5.86885306]
[1766584570359,0.002,2933.0,2932.1,0.893]
[1766584573153,0.002,2933.0,2932.1,4.30349167]
[1766584573362,0.002,2933.0,2932.2,0.9439]
[1766584575172,0.002,2933.0,2932.2,4.35430824]
[1766584575392,0.002,2933.0,2932.3,0.9439]
[1766584576156,0.002,2933.0,2932.4,0.9439]
[1766584576352,0.002,2933.0,2932.6,0.9439]
[1766584578551,0.002,2933.0,2932.7,0.9439]
[1766584583763,0.002,2933.0,2932.8,0.9439]
[1766584584904,0.002,2933.0,2932.8,1.8369]
[1766584588007,0.002,2933.0,2932.8,5.77122189]
[1766584588188,0.001,2933.4,2932.9,0.9439]
[1766584589885,0.001,2933.4,2932.9,4.35348954]
[1766584590304,0.001,2933.4,2933.0,0.9439]
[1766584590510,0.001,2933.4,2933.0,1.53089318]
[1766584591978,0.001,2933.4,2933.1,0.9496]
[1766584593093,0.001,2933.4,2933.2,1.8426]
[1766584593785,0.002,2933.7,2933.3,0.9496]
[1766584595418,0.002,2933.9,2933.3,3.40903649]
[1766584595621,0.002,2934.0,2933.8,0.9496]
[1766584596826,0.002,2934.0,2933.7,0.893]
[1766584597128,0.002,2934.0,2933.2,3.40918406]
[1766584597426,0.002,2934.0,2933.2,4.39968406]
[1766584597726,0.002,2934.0,2933.3,0.9905]
[1766584597901,0.002,2934.0,2933.4,0.43996841]
[1766584598417,30.0,2933.9,2933.0,0.9905]
[1766584598590,0.04260685,2933.8,2933.0,0.9905]
[1766584598931,0.869,2934.0,2933.0,0.9905]
[1766584598932,0.0426054,2933.9,2933.0,0.9905]
[1766584599091,0.869,2934.0,2933.4,0.9905]
[1766584599291,0.869,2934.0,2933.5,0.9905]
[1766584601224,0.869,2934.0,2933.4,0.54785892]
[1766584601422,0.002,2934.0,2933.4,3.95686877]
[1766584602221,0.002,2934.0,2933.4,4.94736877]
[1766584604225,0.002,2934.0,2933.4,1.53835892]
[1766584604521,0.002,2934.0,2933.4,0.54785892]
[1766584607731,0.04460395,2934.0,2933.4,0.001]
[1766584607938,0.002,2934.0,2933.4,0.001]
[1766584608398,0.002,2934.0,2933.4,3.4100042]
[1766584608597,0.002,2934.0,2933.4,0.001]
[1766584611228,0.002,2934.0,2932.9,2.05]
[1766584611410,0.04460395,2934.0,2933.1,3.40929702]
[1766584612305,0.04460395,2934.0,2933.1,4.39979702]
[1766584612501,0.04460395,2934.0,2933.2,3.40922765]
[1766584612700,0.04460395,2934.0,2933.2,4.39972765]
[1766584612933,0.04460395,2934.0,2933.2,0.9905]
[1766584616813,0.867,2933.9,2933.2,4.399742]
[1766584617829,0.867,2933.9,2933.2,0.9905]
[1766584618036,0.04260685,2933.8,2933.2,0.9905]
[1766584618220,0.04260685,2933.8,2933.1,0.001]
[1766584618530,4.57686468,2933.5,2932.4,0.9905]
[1766584618729,4.57686468,2933.5,2932.5,3.40999533]
[1766584618730,0.09877552,2933.3,2932.5,3.40999533]
[1766584618935,0.867,2933.2,2932.5,3.40999533]
[1766584619133,0.09877552,2933.1,2932.4,0.9905]
[1766584619298,0.14139254,2933.1,2932.2,0.9915]
[1766584619630,0.14139254,2933.1,2932.3,3.41023774]
[1766584619938,0.14139254,2933.1,2932.3,5.18195651]
[1766584620229,0.50029913,2933.4,2932.5,0.9905]
[1766584620435,0.867,2933.0,2932.5,0.9905]
[1766584620740,4.47808916,2933.9,2932.5,0.9905]
[1766584620741,0.867,2933.1,2932.5,0.9905]
[1766584621535,0.867,2933.1,2932.5,0.9915]
[1766584622739,0.867,2933.1,2932.5,4.40154595]
[1766584624636,0.14138383,2933.7,2932.6,0.9838]
[1766584624807,2.206818,2933.5,2932.6,0.9838]
[1766584625009,0.34999446,2933.4,2932.6,0.9838]
[1766584625209,0.04261266,2933.4,2932.6,0.9838]
[1766584625413,0.04261121,2933.5,2932.6,0.9838]
[1766584626008,0.14138673,2933.5,2932.6,0.9838]
[1766584627021,0.867,2933.4,2932.6,0.9838]
[1766584628036,0.04261412,2933.3,2932.5,0.001]
[1766584628235,0.14138964,2933.3,2932.5,0.9848]
[1766584628575,0.14138964,2933.3,2932.6,0.9838]
[1766584629051,0.868,2933.2,2932.6,0.9838]
[1766584631120,0.868,2933.2,2932.5,0.001]
[1766584631321,0.868,2933.2,2932.6,0.9838]
[1766584631521,0.868,2933.2,2932.5,0.001]
[1766584633081,0.868,2933.2,2932.2,0.001]
[1766584633360,4.6194817,2933.1,2932.2,0.001]
[1766584633537,30.54874817,2933.0,2932.2,0.001]
[1766584633738,0.04261993,2932.9,2932.0,3.41163862]
[1766584634660,0.04261993,2932.9,2932.0,0.001]
[1766584635069,0.868,2932.8,2932.1,0.9838]
[1766584635237,0.868,2932.8,2932.2,3.41040709]
[1766584635640,0.868,2932.8,2932.1,4.39426377]
[1766584636264,0.868,2932.8,2932.1,8.58537563]
[1766584636839,0.868,2932.8,2932.1,7.60157563]
[1766584637138,0.868,2932.8,2932.2,0.9838]
[1766584638278,0.868,2932.8,2932.3,4.39409226]
[1766584638836,0.868,2932.8,2932.2,3.41035708]
[1766584639050,0.868,2932.8,2932.1,4.39426433]
[1766584639266,0.04262283,2932.7,2932.1,4.39526433]
[1766584639570,0.868,2932.8,2932.2,3.41039794]
[1766584640367,0.868,2932.8,2932.3,0.9838]
[1766584641664,0.04261412,2933.3,2932.3,0.9838]
[1766584641876,8.388828,2933.1,2932.3,0.9838]
[1766584642043,0.04261847,2933.0,2932.3,0.9838]
[1766584642243,11.430493,2933.0,2932.3,0.9838]
[1766584642556,1.147311,2932.9,2932.3,0.9838]
[1766584642877,11.717207,2933.0,2932.3,0.9838]
[1766584643082,12.661591,2933.1,2932.3,0.9838]
[1766584643642,12.302654,2933.1,2932.3,0.9838]
[1766584644379,12.302654,2933.1,2932.3,4.39409096]
[1766584644583,0.04261847,2933.0,2932.3,4.39409096]
[1766584644878,0.868,2933.2,2932.3,4.39409096]
[1766584644879,0.04261702,2933.1,2932.3,3.41029096]
[1766584645054,0.04261702,2933.1,2932.4,0.9838]
[1766584646341,0.868,2933.0,2932.2,3.41034666]
[1766584646542,0.04461266,2933.4,2932.2,4.39414666]
[1766584646760,5.422977,2933.2,2932.2,4.39414666]
[1766584647035,0.67171472,2933.1,2932.2,4.39414666]
[1766584647337,0.87,2933.0,2932.2,4.39414666]
[1766584654178,0.04261993,2932.9,2932.2,4.39414666]
[1766584657449,0.87,2933.0,2932.2,4.39414666]
[1766584661784,0.04261993,2932.9,2932.2,4.39414666]
[1766584663283,0.91061993,2932.9,2932.2,4.39414666]
[1766584671084,0.91061993,2932.9,2932.2,7.80455522]
[1766584671291,0.868,2932.9,2932.2,5.17480218]
[1766584672288,0.002,2933.0,2932.3,0.9792]
[1766584674396,0.002,2933.0,2932.4,4.38937596]
[1766584674560,0.002,2933.0,2932.5,0.9792]
[1766584675591,0.002,2933.0,2932.3,4.38943323]
[1766584679206,0.002,2933.0,2932.4,0.9792]
[1766584680871,0.002,2933.0,2932.5,0.9792]
[1766584682208,0.002,2933.0,2932.1,0.001]
[1766584682500,0.002,2933.0,2932.3,4.37017603]
[1766584683066,0.869,2933.0,2932.4,0.9599]
[1766584685083,0.04261993,2932.9,2932.4,0.9599]
[1766584687315,0.04261993,2932.9,2932.1,0.9609]
[1766584691447,0.04261993,2932.9,2932.1,0.001]
[1766584696748,0.04261993,2932.9,2932.1,0.9609]
[1766584698249,0.04261993,2932.9,2932.1,0.001]
[1766584698454,0.04261993,2932.9,2931.6,0.9599]
[1766584698455,17.356503,2932.8,2931.6,0.9599]
[1766584698750,1.78253512,2932.7,2931.6,4.3709684]
[1766584698953,28.781967,2932.6,2931.6,4.3709684]
[1766584699166,0.04262574,2932.5,2931.6,4.3709684]
[1766584699357,0.866,2932.4,2931.6,4.3709684]
[1766584699522,0.04262865,2932.3,2931.6,4.3709684]
[1766584700258,0.04262865,2932.3,2931.6,0.9599]
[1766584704285,0.04262865,2932.3,2931.5,0.001]
[1766584710357,0.04262865,2932.3,2931.5,0.7795637]
[1766584710545,0.04262865,2932.3,2931.5,1.7394637]
[1766584710745,0.04262865,2932.3,2931.6,0.9599]
[1766584711574,0.866,2932.2,2931.6,0.9599]
[1766584712473,0.866,2932.2,2931.6,4.37095733]
[1766584712777,0.866,2932.2,2931.6,5.2272376]
[1766584714283,0.866,2932.2,2931.7,0.9262]
[1766584716800,0.866,2932.2,2931.5,0.001]
[1766584717003,3.003531,2932.0,2931.5,0.001]
[1766584717785,3.003531,2932.0,2931.4,0.001]
[1766584718469,0.30461626,2931.9,2931.4,0.001]
[1766584718691,13.052135,2932.0,2931.4,0.001]
[1766584718893,30.0,2932.1,2931.4,0.001]
[1766584719083,0.04263301,2932.0,2931.4,0.001]
[1766584719389,0.04263156,2932.1,2931.4,0.001]
[1766584719595,10.725061,2932.0,2931.4,0.001]
[1766584719797,11.88843026,2932.0,2931.5,0.001]
[1766584720091,1.16336926,2932.0,2931.5,0.001]
[1766584720396,10.725061,2932.0,2931.5,0.001]
[1766584720575,30.0,2932.1,2931.5,0.001]
[1766584724000,30.0,2932.1,2931.6,0.9456]
[1766584729321,30.0,2932.1,2931.5,0.001]
[1766584729514,30.002,2932.1,2931.5,0.001]
[1766584729720,1.25205131,2932.0,2931.5,0.001]
[1766584730020,0.04263301,2932.0,2931.5,0.001]
[1766584730215,0.04463156,2932.1,2931.5,0.001]
[1766584732121,0.04463156,2932.1,2931.5,0.9466]
[1766584732312,0.002,2932.1,2931.5,0.9466]
[1766584733622,0.002,2932.1,2931.6,0.9456]
[1766584733826,0.002,2932.3,2932.0,1.04437552]
[1766584733988,0.04461993,2932.9,2932.2,5.42788586]
[1766584734192,0.04461993,2932.9,2932.2,0.9456]
[1766584736205,0.04461993,2932.9,2931.9,1.8396]
[1766584736895,0.04461993,2932.9,2931.7,0.894]
[1766584737097,30.0,2932.8,2931.8,0.93219503]
[1766584737302,0.04262283,2932.7,2931.7,4.35656521]
[1766584737505,0.04262283,2932.7,2931.8,3.41084791]
[1766584738699,0.04262283,2932.7,2931.8,0.9456]
[1766584739926,0.04262283,2932.7,2931.8,4.45524267]
[1766584740130,0.04262283,2932.7,2931.8,1.04437552]
[1766584740543,0.04262283,2932.7,2931.8,0.9456]
[1766584740928,0.04262283,2932.7,2931.8,4.35647339]
[1766584741236,0.04262283,2932.7,2931.8,5.68073678]
[1766584742537,0.04262283,2932.7,2931.8,2.26986339]
[1766584743041,0.04262283,2932.7,2931.8,5.68072484]
[1766584743434,0.04262283,2932.7,2931.8,2.26986339]
[1766584744022,0.04262283,2932.7,2931.8,5.68073081]
[1766584745062,0.04462283,2932.7,2931.8,5.68073081]
[1766584745360,0.04462283,2932.7,2932.2,4.48228586]
[1766584746646,0.04462283,2932.7,2932.3,0.9135]
[1766584747940,0.04462283,2932.7,2932.2,4.48228586]
[1766584749554,0.04462283,2932.7,2932.3,0.9135]
[1766584751247,0.04462283,2932.7,2932.2,4.48228586]
[1766584751248,0.04462283,2932.7,2932.2,3.48228586]
[1766584751549,0.04462283,2932.7,2932.2,1.48228586]
[1766584751753,0.04462283,2932.7,2932.2,0.48228586]
[1766584752218,0.04462283,2932.7,2931.5,0.9145]
[1766584752415,22.150942,2932.1,2931.3,0.001]
[1766584752644,23.294176,2931.9,2931.0,0.001]
[1766584752837,0.04263592,2931.8,2931.0,0.001]
[1766584753047,21.738425,2931.7,2931.0,0.001]
[1766584753355,0.04263883,2931.6,2930.8,4.48328586]
[1766584753547,30.0,2931.8,2930.7,4.48228586]
[1766584753856,30.0,2931.6,2930.7,4.48228586]
[1766584754157,30.0,2931.4,2930.4,0.001]
[1766584754327,3.00426345,2931.7,2930.2,4.48328586]
[1766584754328,30.0,2931.2,2930.2,4.48328586]
[1766584754660,0.0426461,2931.1,2930.6,0.001]
[1766584754855,28.879564,2931.1,2930.6,0.001]
[1766584755057,2.93486842,2931.0,2930.6,0.001]
[1766584755224,0.04264756,2931.0,2930.6,0.001]
[1766584755424,27.087603,2931.1,2930.6,0.001]
[1766584755736,0.04264756,2931.0,2930.6,0.001]
[1766584756343,1.02450793,2931.5,2930.6,0.001]
[1766584756344,0.04264174,2931.4,2930.6,0.001]
[1766584756658,0.04264174,2931.4,2930.9,4.48228586]
[1766584756857,3.41188559,2932.7,2931.1,1.01227552]
[1766584756858,2.488403,2932.0,2931.1,1.01227552]
[1766584757156,0.04263446,2931.9,2931.3,0.09877552]
[1766584757368,3.502228,2932.0,2931.3,1.01227552]
[1766584757540,0.866,2932.2,2931.1,0.09877552]
[1766584757541,0.04263446,2931.9,2931.1,0.09877552]
[1766584757724,21.739689,2932.0,2931.1,0.09877552]
[1766584757922,2.22086652,2931.9,2931.1,0.09877552]
[1766584758161,0.04263446,2931.9,2931.1,0.09877552]
[1766584758361,21.739689,2932.0,2931.1,0.09877552]
[1766584758563,0.04263446,2931.9,2931.1,0.09877552]
[1766584758852,3.61185239,2932.7,2931.1,0.09877552]
[1766584758853,0.04263156,2932.1,2931.3,1.01227552]
[1766584759057,18.439961,2932.4,2931.3,1.01227552]
[1766584759358,0.2,2932.6,2931.3,1.01227552]
[1766584759359,1.89088732,2932.3,2931.3,1.01227552]
[1766584759559,0.04262865,2932.3,2931.3,1.01227552]
[1766584759754,0.2,2932.6,2931.3,1.01227552]
[1766584759755,20.242382,2932.4,2931.4,0.9135]
[1766584760055,0.04262865,2932.3,2931.4,0.9135]
[1766584760262,18.637965,2932.4,2931.4,0.9135]
[1766584760567,0.04262865,2932.3,2931.4,0.9135]
[1766584760764,18.637965,2932.4,2931.5,0.9135]
[1766584760947,0.868,2932.7,2931.5,0.9135]
[1766584760948,0.04262865,2932.3,2931.5,0.9135]
[1766584761141,7.289373,2932.5,2931.5,4.423457]
[1766584761343,5.499149,2932.3,2931.5,4.423457]
[1766584761645,6.636503,2932.5,2931.5,5.75234176]
[1766584761824,4.499149,2932.3,2931.5,5.75234176]
[1766584762029,6.636503,2932.5,2931.5,5.75234176]
[1766584762226,4.499149,2932.3,2931.5,5.75234176]
[1766584762430,0.04262429,2932.6,2931.6,0.9135]
[1766584762650,2.061656,2932.5,2931.6,1.91714844]
[1766584762843,0.04262719,2932.4,2931.6,1.91714844]
[1766584763160,0.868,2932.7,2931.6,1.91714844]
[1766584763161,4.482096,2932.5,2931.6,1.91714844]
[1766584763344,4.482096,2932.5,2931.6,5.32822863]
[1766584763345,0.04262719,2932.4,2931.6,5.32822863]
[1766584763753,4.482096,2932.5,2931.6,5.32822863]
[1766584764051,0.04262719,2932.4,2931.6,5.32822863]
[1766584764546,4.482096,2932.5,2931.6,5.32822863]
[1766584764750,0.04262719,2932.4,2931.6,5.32822863]
[1766584764951,0.04262429,2932.6,2931.6,5.32822863]
[1766584765252,4.482096,2932.5,2931.7,0.9135]
[1766584765434,0.49509922,2932.4,2931.7,0.9135]
[1766584765761,0.04262719,2932.4,2931.7,0.9135]
[1766584765961,4.482096,2932.5,2931.7,0.9135]
[1766584766263,0.04262719,2932.4,2931.7,0.9135]
[1766584766467,5.967096,2932.5,2931.7,0.9135]
[1766584766636,0.04262719,2932.4,2931.7,0.9135]
[1766584766836,6.735096,2932.5,2931.7,0.9135]
[1766584767047,0.72039922,2932.4,2931.7,0.9135]
[1766584767248,0.04262719,2932.4,2931.7,0.9135]
[1766584767453,0.868,2932.7,2931.7,0.9135]
[1766584767454,6.735096,2932.5,2931.7,0.9135]
[1766584767639,34.48228586,2932.3,2931.3,1.8485]
[1766584767852,0.0426301,2932.2,2931.3,5.25988767]
[1766584768139,22.489459,2932.4,2931.4,0.52598877]
[1766584768350,14.763035,2932.2,2931.3,5.25988767]
[1766584768559,0.04263156,2932.1,2931.3,5.25988767]
[1766584768772,23.836435,2932.4,2931.3,5.25988767]
[1766584768947,8.392035,2932.2,2931.4,3.41131663]
[1766584769157,0.88609792,2932.1,2931.3,1.8485]
[1766584769479,0.88609792,2932.1,2931.3,5.25986751]
[1766584769480,0.04263156,2932.1,2931.3,5.25986751]
[1766584769644,18.780223,2932.4,2931.3,5.25986751]
[1766584769837,8.391865,2932.2,2931.3,5.25986751]
[1766584770029,0.04263156,2932.1,2931.3,5.25986751]
[1766584770233,0.002,2932.5,2931.3,5.25986751]
[1766584770234,24.705138,2932.4,2931.3,5.25986751]
[1766584770434,4.776865,2932.2,2931.3,6.58511526]
[1766584770664,0.04263156,2932.1,2931.3,6.58511526]
[1766584770868,0.002,2932.5,2931.3,6.58511526]
[1766584770869,17.336747,2932.4,2931.3,6.58511526]
[1766584771038,6.30688,2932.2,2931.3,6.58511526]
[1766584771238,0.04263156,2932.1,2931.3,6.58511526]
[1766584771440,18.165192,2932.4,2931.3,6.58511526]
[1766584771644,4.82188,2932.2,2931.3,6.58511526]
[1766584771843,0.04263156,2932.1,2931.3,6.58511526]
[1766584772044,0.002,2932.5,2931.3,6.58511526]
[1766584772045,30.0,2932.4,2931.3,6.58511526]
[1766584772385,6.30688,2932.2,2931.3,6.58511526]
[1766584772673,0.04263156,2932.1,2931.3,6.58511526]
[1766584772970,30.0,2932.4,2931.4,0.66838908]
[1766584773159,7.38188,2932.2,2931.3,6.58511526]
[1766584773470,0.04263156,2932.1,2931.4,0.9251]
[1766584773670,19.147367,2932.4,2931.4,0.9251]
[1766584773855,8.86688,2932.2,2931.4,0.9251]
[1766584774062,0.04263156,2932.1,2931.4,0.9251]
[1766584774270,5.168169,2932.4,2931.4,0.66554908]
[1766584774453,0.04262865,2932.3,2931.4,0.66554908]
[1766584774653,5.401861,2932.4,2931.4,1.59064908]
[1766584774853,0.04262865,2932.3,2931.4,1.59064908]
[1766584775066,5.401861,2932.4,2931.4,1.59064908]
[1766584775375,0.58727732,2932.3,2931.4,4.33638766]
[1766584775576,0.04262865,2932.3,2931.4,4.33638766]
[1766584775874,0.04462574,2932.5,2931.4,4.33638766]
[1766584776074,6.043224,2932.4,2931.4,4.33638766]
[1766584776274,0.04262865,2932.3,2931.4,4.33638766]
[1766584776466,6.043224,2932.4,2931.4,4.33638766]
[1766584776670,0.65141362,2932.3,2931.4,4.33638766]
[1766584776967,0.04262865,2932.3,2931.4,4.33638766]
[1766584777168,0.002,2932.5,2931.4,4.33638766]
[1766584777169,6.043224,2932.4,2931.4,4.33638766]
[1766584777372,0.04262865,2932.3,2931.4,4.33638766]
[1766584777670,6.043224,2932.4,2931.4,4.33638766]
[1766584777846,0.04262865,2932.3,2931.4,4.33638766]
[1766584778184,8.67756,2932.4,2931.4,0.9251]
[1766584778382,0.91484722,2932.3,2931.4,4.33641008]
[1766584778681,0.04262865,2932.3,2931.4,0.9251]
[1766584778857,0.002,2932.3,2931.4,0.9251]
[1766584779057,10.972601,2932.2,2931.4,0.9251]
[1766584779260,0.04263156,2932.1,2931.4,0.9251]
[1766584779464,10.972601,2932.2,2931.4,0.9251]
[1766584779668,1.14009166,2932.1,2931.4,0.9251]
[1766584779963,0.04263156,2932.1,2931.4,0.9251]
[1766584780167,11.345601,2932.2,2931.3,0.895]
[1766584780370,0.04263156,2932.1,2931.3,0.895]
[1766584780557,11.345601,2932.2,2931.3,0.895]
[1766584780758,0.04263156,2932.1,2931.3,0.895]
[1766584780958,11.345601,2932.2,2931.3,0.895]
[1766584781277,1.17739166,2932.1,2931.3,0.895]
[1766584781448,0.04263156,2932.1,2931.3,0.895]
[1766584781648,11.345601,2932.2,2931.3,0.895]
[1766584781960,0.04263156,2932.1,2931.3,0.895]
[1766584782275,7.987601,2932.2,2931.3,4.30643389]
[1766584782444,0.04263156,2932.1,2931.4,0.9251]
[1766584782646,5.561601,2932.2,2931.4,0.62192891]
[1766584782885,4.615,2932.2,2931.5,0.9251]
[1766584783378,4.615,2932.2,2931.5,4.33630916]
[1766584784180,2.56,2932.2,2931.5,4.33630916]
[1766584784680,0.04462865,2932.3,2931.5,4.33630916]
[1766584786383,0.04462865,2932.3,2931.6,0.9251]
[1766584787287,0.04462865,2932.3,2931.6,4.3362019]
[1766584787665,0.002,2932.3,2931.6,0.9251]
[1766584787852,0.002,2932.3,2931.6,4.33618754]
[1766584789784,0.002,2932.3,2931.7,0.9961]
[1766584792790,0.04462865,2932.3,2931.7,0.9961]